bitfinex-derivatives/quotes_ETHF0:USTF0_20241004
["timestamp","ask_amount","ask_price","bid_price","bid_amount"]
[1728063481343,0.207,2414.5,2413.5,0.41435]
[1728063481344,0.41431,2413.8,2413.5,0.41435]
[1728063481540,1.0356,2414.2,2413.2,7.6878]
[1728063481541,1.0356,2414.2,2413.2,3.2078]
[1728063481851,0.41433,2413.7,2413.3,0.41438]
[1728063482143,0.41433,2413.7,2413.4,0.41437]
[1728063482337,1.03563,2414.1,2413.2,3.2078]
[1728063482533,0.41433,2413.7,2413.3,0.41437]
[1728063482737,0.41433,2413.7,2413.4,0.41436]
[1728063482939,0.41431,2413.8,2413.2,3.2078]
[1728063483139,0.41432,2413.7,2413.4,0.41436]
[1728063483333,3.2078,2414.3,2413.2,3.2078]
[1728063483538,3.2078,2414.3,2413.5,3.2078]
[1728063483539,1.03559,2414.2,2413.5,3.2078]
[1728063483738,0.41433,2413.6,2413.3,0.41438]
[1728063483935,3.2078,2414.0,2413.2,3.2078]
[1728063484144,3.2078,2413.6,2412.7,3.2078]
[1728063484650,3.2078,2413.6,2412.8,0.5019]
[1728063484651,1.03589,2413.5,2412.8,0.5019]
[1728063484949,1.03589,2413.5,2412.8,0.91637]
[1728063485247,1.03589,2413.5,2412.8,0.5019]
[1728063485643,3.2078,2413.6,2412.7,3.2078]
[1728063485844,0.41444,2413.0,2412.7,3.2078]
[1728063486044,1.03589,2413.5,2412.7,3.2078]
[1728063486245,0.41442,2413.1,2412.8,0.41447]
[1728063486439,1.03589,2413.5,2412.8,0.41447]
[1728063486747,3.2078,2413.6,2412.7,3.2078]
[1728063486945,1.03602,2413.2,2412.7,3.2078]
[1728063487254,0.41452,2412.5,2412.3,3.2078]
[1728063487548,1.03602,2413.2,2412.3,3.2078]
[1728063487549,0.41448,2412.8,2412.3,3.2078]
[1728063487746,0.41447,2412.9,2412.5,0.41452]
[1728063487940,3.2078,2413.3,2412.7,0.41448]
[1728063488149,3.2078,2413.3,2412.6,3.2078]
[1728063488355,0.41446,2412.9,2412.6,3.6223]
[1728063488551,1.03606,2413.1,2412.3,3.2078]
[1728063488746,0.41452,2412.6,2412.3,3.2078]
[1728063488952,0.41454,2412.4,2412.3,3.2078]
[1728063489744,0.41454,2412.5,2412.3,3.2078]
[1728063489951,4.1448,2412.7,2412.3,3.2078]
[1728063490143,0.41451,2412.6,2412.3,3.62235]
[1728063490451,0.41453,2412.5,2412.3,3.2078]
[1728063490643,1.54162,2412.8,2412.3,3.2078]
[1728063491040,0.41453,2412.5,2412.3,3.2078]
[1728063491247,0.41449,2412.7,2412.3,3.2078]
[1728063491449,0.41451,2412.6,2412.3,3.62235]
[1728063491650,0.4145,2412.7,2412.4,0.41454]
[1728063491852,0.5054,2412.8,2412.3,3.2078]
[1728063492149,0.41451,2412.6,2412.4,0.41454]
[1728063492343,0.5054,2412.8,2412.3,3.2078]
[1728063492344,0.41453,2412.5,2412.3,3.62235]
[1728063492550,0.41452,2412.6,2412.4,0.41454]
[1728063492859,3.2078,2412.9,2412.3,3.2078]
[1728063493156,0.5046,2413.4,2412.6,3.2078]
[1728063493356,0.41437,2413.4,2413.2,0.41439]
[1728063493553,3.2078,2413.5,2412.9,3.2078]
[1728063493755,0.4144,2413.2,2413.0,0.41444]
[1728063494052,3.2078,2413.5,2412.9,3.2078]
[1728063494258,3.62216,2413.5,2413.0,0.41444]
[1728063494563,3.62216,2413.5,2412.9,3.2078]
[1728063494564,0.41438,2413.4,2412.9,3.2078]
[1728063494854,0.41433,2413.6,2413.2,0.4144]
[1728063495048,1.03583,2413.7,2412.9,3.2078]
[1728063495256,3.7124,2413.9,2412.9,3.2078]
[1728063495551,1.03576,2413.8,2412.9,3.2078]
[1728063495750,0.41436,2413.5,2412.9,3.2078]
[1728063495958,3.7124,2413.9,2412.9,4.24393]
[1728063496159,0.41432,2413.7,2413.5,0.41435]
[1728063496357,4.74814,2413.9,2413.2,3.2078]
[1728063496555,0.4143,2413.8,2413.2,3.2078]
[1728063496747,2.182,2414.3,2413.2,3.2078]
[1728063496748,1.03551,2414.4,2413.5,3.2078]
[1728063496948,0.4785,2414.6,2413.8,3.2078]
[1728063497149,4.7665,2414.9,2413.9,4.48]
[1728063497347,0.41421,2414.4,2414.2,0.41422]
[1728063497653,4.7665,2414.9,2414.1,0.41424]
[1728063497654,1.03533,2414.8,2414.1,0.41424]
[1728063497853,1.03542,2414.6,2413.9,4.9829]
[1728063498055,3.7312,2414.9,2413.9,6.01858]
[1728063498257,0.41419,2414.5,2414.3,0.41421]
[1728063498460,0.5234,2414.9,2414.1,3.2078]
[1728063498461,3.7312,2414.9,2414.1,3.2078]
[1728063498658,0.41417,2414.6,2414.2,0.41423]
[1728063498863,1.03534,2414.8,2414.3,0.527]
[1728063499158,0.41418,2414.6,2414.4,0.4142]
[1728063499365,0.41418,2414.6,2414.4,0.41419]
[1728063499759,0.4142,2414.4,2414.3,0.527]
[1728063500061,0.41416,2414.6,2414.3,0.527]
[1728063500258,0.41417,2414.6,2414.4,0.4142]
[1728063500453,3.2078,2414.9,2414.3,0.527]
[1728063500760,3.2078,2414.9,2414.5,0.41418]
[1728063500761,0.41415,2414.7,2414.5,0.41418]
[1728063500959,0.41415,2414.7,2414.4,0.41419]
[1728063501152,0.41416,2414.6,2414.4,0.41419]
[1728063501354,0.41416,2414.7,2414.4,0.4142]
[1728063501655,1.03531,2414.9,2414.4,0.4142]
[1728063501656,0.41417,2414.6,2414.4,0.4142]
[1728063501860,1.03531,2414.9,2414.3,0.527]
[1728063502056,0.4142,2414.4,2414.3,0.527]
[1728063503366,0.41417,2414.6,2414.4,0.4142]
[1728063503562,0.41419,2414.5,2414.3,0.94121]
[1728063503759,0.41419,2414.5,2414.3,0.527]
[1728063503964,0.4142,2414.4,2414.3,0.527]
[1728063504466,0.41419,2414.5,2414.3,0.94121]
[1728063504659,1.03541,2414.7,2414.3,0.527]
[1728063504660,0.4142,2414.4,2414.3,0.527]
[1728063504862,0.41419,2414.5,2414.3,0.94121]
[1728063505068,0.41418,2414.6,2414.4,0.41419]
[1728063505262,1.03533,2414.8,2414.3,0.527]
[1728063505263,3.2078,2414.9,2414.3,0.527]
[1728063505461,0.41418,2414.5,2414.3,0.9412]
[1728063505659,0.4142,2414.4,2414.3,0.527]
[1728063507863,0.4142,2414.4,2413.9,0.5029]
[1728063507864,1.0355,2414.4,2413.9,0.5029]
[1728063508063,7.1878,2414.9,2413.4,5.01591]
[1728063508064,0.41433,2413.7,2413.5,0.52]
[1728063508258,0.41433,2413.6,2413.5,0.52]
[1728063508458,3.2078,2414.3,2413.8,0.4143]
[1728063508672,0.41432,2413.7,2413.6,0.41433]
[1728063508870,1.03569,2414.0,2413.5,0.52]
[1728063509166,0.41421,2414.3,2414.1,0.41425]
[1728063509365,9.4548,2414.9,2413.9,3.2078]
[1728063509563,0.4142,2414.5,2414.3,0.41421]
[1728063509758,0.4142,2414.5,2414.3,0.4142]
[1728063509759,0.41419,2414.5,2414.3,0.4142]
[1728063509968,0.41417,2414.6,2414.0,1.53145]
[1728063510174,0.5015,2414.8,2414.2,3.2078]
[1728063510467,0.5015,2414.8,2414.3,0.5054]
[1728063510670,1.44952,2414.7,2414.3,0.91961]
[1728063510861,0.41415,2414.7,2414.3,0.5054]
[1728063511059,0.41419,2414.5,2414.3,0.5054]
[1728063511268,0.41415,2414.7,2414.3,0.5054]
[1728063511467,0.4142,2414.5,2414.3,0.5054]
[1728063511667,0.4142,2414.5,2414.3,0.91961]
[1728063511966,0.4142,2414.4,2414.3,0.91961]
[1728063512271,0.41419,2414.5,2414.4,0.4142]
[1728063512460,0.4142,2414.4,2414.3,0.91961]
[1728063512868,0.41419,2414.5,2414.3,0.91961]
[1728063513167,0.41415,2414.7,2414.3,0.91961]
[1728063513168,0.4142,2414.4,2414.3,0.91961]
[1728063513371,0.41419,2414.5,2414.3,0.5054]
[1728063513664,0.41414,2414.8,2414.6,0.41415]
[1728063513870,0.41413,2414.9,2414.3,1.54093]
[1728063514064,0.41413,2414.9,2414.5,3.2078]
[1728063514260,0.41409,2415.1,2414.9,0.4141]
[1728063514971,0.41409,2415.0,2414.9,0.4141]
[1728063515172,0.41409,2415.1,2414.9,0.4141]
[1728063515371,0.41409,2415.0,2414.9,0.4141]
[1728063515574,0.4141,2415.0,2414.8,0.41412]
[1728063515774,0.4141,2415.0,2414.6,0.4977]
[1728063515775,0.4141,2415.0,2414.9,0.41411]
[1728063515974,1.55485,2415.3,2414.9,0.41411]
[1728063516168,1.03516,2415.2,2414.8,0.41412]
[1728063516370,0.4141,2415.0,2414.8,0.41412]
[1728063516670,0.4141,2415.0,2414.8,3.62192]
[1728063517276,0.41409,2415.1,2414.9,0.4141]
[1728063517472,1.03511,2415.4,2414.8,3.2078]
[1728063517672,0.41407,2415.2,2414.8,3.2078]
[1728063517870,0.41407,2415.2,2415.1,0.41408]
[1728063518470,0.41405,2415.3,2415.1,0.41408]
[1728063518773,0.41405,2415.3,2415.1,0.41407]
[1728063518969,1.51572,2415.6,2414.8,3.2078]
[1728063518970,0.4807,2415.6,2414.8,3.2078]
[1728063519174,0.41407,2415.2,2415.0,0.41408]
[1728063519382,0.41407,2415.2,2415.1,0.41408]
[1728063519874,0.4807,2415.6,2414.8,3.2078]
[1728063520175,0.41403,2415.4,2415.3,0.41404]
[1728063520384,0.41405,2415.3,2415.2,0.41405]
[1728063520582,1.03497,2415.7,2415.1,3.62187]
[1728063520779,0.41406,2415.2,2415.1,3.2078]
[1728063521172,0.41408,2415.1,2415.0,0.5219]
[1728063521377,0.41404,2415.3,2415.0,0.5219]
[1728063521576,0.41404,2415.3,2415.1,0.41407]
[1728063522372,0.41404,2415.3,2415.2,0.41406]
[1728063522683,0.41406,2415.3,2415.1,0.41407]
[1728063522987,0.41403,2415.4,2415.2,0.41405]
[1728063523586,1.03499,2415.6,2415.2,0.41405]
[1728063523888,0.41404,2415.3,2415.2,0.41405]
[1728063524186,1.03499,2415.6,2415.0,3.7297]
[1728063524780,0.41404,2415.3,2415.2,0.41405]
[1728063525084,3.7202,2415.8,2415.0,4.14378]
[1728063525274,1.4491,2415.4,2414.7,3.62194]
[1728063525483,0.41413,2414.8,2414.7,3.2078]
[1728063525883,0.41413,2414.8,2414.7,7.3494]
[1728063526185,0.41413,2414.8,2414.4,4.9745]
[1728063526186,0.4142,2414.5,2414.4,3.2078]
[1728063527784,0.41413,2414.8,2414.6,0.41415]
[1728063528088,0.41414,2414.8,2414.6,0.41416]
[1728063528277,0.41414,2414.8,2414.4,3.2078]
[1728063528483,0.41414,2414.8,2414.6,0.41416]
[1728063528884,0.41415,2414.7,2414.5,0.41417]
[1728063529082,1.03529,2414.9,2414.4,3.2078]
[1728063529083,3.2078,2415.2,2414.4,3.2078]
[1728063529281,0.41413,2414.8,2414.7,3.2078]
[1728063529478,1.0352,2415.1,2414.7,3.2078]
[1728063529680,0.41409,2415.0,2414.7,3.62194]
[1728063529882,0.41413,2414.8,2414.7,3.2078]
[1728063535091,0.41409,2415.1,2414.9,0.41411]
[1728063535392,3.2078,2415.2,2415.0,0.41408]
[1728063535393,0.41407,2415.2,2415.0,0.41408]
[1728063535594,0.41407,2415.2,2415.1,0.41408]
[1728063535806,1.44911,2415.4,2415.0,0.41408]
[1728063535994,1.44911,2415.4,2414.8,1.52442]
[1728063535995,0.41407,2415.2,2415.1,0.41407]
[1728063537090,0.41409,2415.1,2415.0,0.41409]
[1728063537287,1.55925,2415.5,2414.8,0.4891]
[1728063537288,1.03516,2415.2,2414.8,0.4891]
[1728063537500,0.41407,2415.2,2415.1,0.41407]
[1728063537993,1.03507,2415.4,2414.8,0.4891]
[1728063538192,0.41406,2415.2,2415.1,0.41407]
[1728063538590,1.03512,2415.3,2414.9,0.5046]
[1728063538793,0.41406,2415.3,2415.1,0.41406]
[1728063539188,0.41406,2415.3,2415.2,0.41406]
[1728063539389,0.5242,2415.5,2415.0,3.2078]
[1728063539694,0.41403,2415.4,2415.3,0.41403]
[1728063540102,3.2078,2416.0,2415.3,3.2078]
[1728063540298,0.414,2415.6,2415.5,0.41399]
[1728063540692,4.73674,2416.0,2415.4,0.4852]
[1728063540903,0.41397,2415.8,2415.7,0.41397]
[1728063541100,0.41394,2416.0,2415.9,0.41394]
[1728063541400,3.2078,2416.3,2415.6,4.24278]
[1728063541401,4.24252,2416.3,2415.6,4.24278]
[1728063541598,4.24252,2416.3,2416.0,0.41391]
[1728063541599,0.41391,2416.1,2416.0,0.41391]
[1728063541797,0.41389,2416.2,2416.1,0.4139]
[1728063541994,4.03350273,2416.7,2415.9,3.2078]
[1728063541995,3.2078,2416.9,2416.0,5.5]
[1728063542198,0.41385,2416.5,2416.4,0.41385]
[1728063542399,3.2078,2416.9,2416.3,3.2078]
[1728063542400,3.2078,2416.9,2416.3,7.1878]
[1728063542699,1.03459,2416.6,2416.0,0.4852]
[1728063542893,0.41389,2416.2,2416.1,0.4139]
[1728063543095,1.03467,2416.4,2416.0,0.4852]
[1728063543300,0.4139,2416.2,2416.0,0.89912]
[1728063543497,0.41391,2416.1,2416.0,0.4852]
[1728063543999,1.03466,2416.4,2416.0,0.89912]
[1728063544300,0.41391,2416.1,2416.0,0.4852]
[1728063544505,0.4139,2416.2,2416.0,0.4852]
[1728063544701,1.03456,2416.7,2416.0,0.4852]
[1728063545000,0.41384,2416.5,2416.3,0.41386]
[1728063545201,4.24225,2416.9,2416.2,3.2078]
[1728063545403,0.41384,2416.6,2416.3,0.5103]
[1728063545606,1.03447,2416.8,2416.4,0.41384]
[1728063545804,0.41382,2416.7,2416.4,0.41384]
[1728063546009,0.41382,2416.7,2416.3,0.5103]
[1728063546010,0.41382,2416.7,2416.5,0.41383]
[1728063546307,0.41382,2416.7,2416.6,0.5244]
[1728063546604,0.4138,2416.7,2416.6,0.5244]
[1728063547198,4.5514,2416.7,2416.6,0.5244]
[1728063547501,4.5514,2416.7,2416.0,3.98]
[1728063547502,1.03458,2416.6,2416.1,3.2078]
[1728063547704,0.41389,2416.2,2416.1,3.2078]
[1728063553909,1.03443,2416.9,2416.1,11.327]
[1728063554107,0.498,2417.0,2416.2,0.41388]
[1728063554309,3.2078,2416.9,2416.1,3.2078]
[1728063554615,3.2078,2416.9,2416.1,3.62171]
[1728063554616,0.41389,2416.2,2416.1,3.62171]
[1728063554815,0.41388,2416.3,2416.2,0.41389]
[1728063555009,0.41387,2416.4,2416.2,0.41389]
[1728063555205,3.2078,2416.9,2416.1,3.2078]
[1728063555407,0.41379,2416.8,2416.7,0.4138]
[1728063556817,0.41382,2416.6,2416.5,1.0017]
[1728063557017,1.53242,2417.0,2416.5,1.0017]
[1728063557221,0.4138,2416.7,2416.6,0.41382]
[1728063557825,0.41382,2416.6,2416.5,1.0017]
[1728063558123,0.41382,2416.6,2416.5,1.41554]
[1728063558919,0.41382,2416.6,2416.5,1.0017]
[1728063559818,0.41382,2416.6,2416.5,0.4917]
[1728063560124,1.03445,2416.9,2416.6,0.41381]
[1728063560125,0.41381,2416.7,2416.6,0.41381]
[1728063560624,0.41382,2416.6,2416.5,0.90553]
[1728063561923,0.41381,2416.7,2416.6,0.41381]
[1728063562120,0.4138,2416.8,2416.7,0.4138]
[1728063562521,3.2078,2417.2,2416.7,3.2078]
[1728063562720,0.41375,2417.0,2416.8,0.41378]
[1728063562926,1.03434,2417.1,2416.8,0.41378]
[1728063563420,1.03434,2417.1,2416.7,3.2078]
[1728063563624,0.41377,2417.0,2416.9,0.41376]
[1728063564025,0.4938,2417.3,2416.8,0.5294]
[1728063564221,0.41376,2417.1,2417.0,0.41374]
[1728063564413,0.41373,2417.1,2417.0,3.2078]
[1728063565328,4.55133,2417.1,2417.0,3.2078]
[1728063566021,0.41373,2417.1,2417.0,3.2078]
[1728063566722,0.41377,2416.9,2416.8,0.41378]
[1728063566921,1.52808,2417.3,2416.8,3.98]
[1728063567123,0.41373,2417.2,2417.1,0.41373]
[1728063567325,0.41373,2417.2,2417.1,0.5166]
[1728063568625,1.0342,2417.5,2417.1,0.5166]
[1728063568819,0.5294,2417.8,2417.2,0.4137]
[1728063568820,0.41371,2417.3,2417.2,0.4137]
[1728063569523,0.41372,2417.2,2417.1,0.93031]
[1728063570527,0.41372,2417.2,2417.1,0.5166]
[1728063574836,0.4845,2417.3,2417.0,3.2078]
[1728063575133,0.41373,2417.1,2417.0,3.2078]
[1728063579340,0.41373,2417.1,2417.0,3.62155]
[1728063579531,0.41373,2417.2,2417.1,0.41372]
[1728063580929,0.41373,2417.2,2417.0,6.4378]
[1728063580930,0.41373,2417.1,2417.0,6.85155]
[1728063583234,1.0343,2417.2,2417.0,6.85155]
[1728063583235,0.41373,2417.2,2417.1,0.41372]
[1728063583535,1.0342,2417.5,2417.3,0.41368]
[1728063583732,0.41367,2417.6,2417.5,0.41365]
[1728063583932,0.41367,2417.6,2417.5,3.64365]
[1728063584735,0.41367,2417.6,2417.5,3.23]
[1728063584943,0.41367,2417.6,2417.4,4.2401]
[1728063584944,0.41367,2417.5,2417.4,4.2401]
[1728063585437,0.41367,2417.5,2417.4,3.7332]
[1728063586238,0.41367,2417.5,2417.3,3.2078]
[1728063586437,0.41368,2417.4,2417.3,3.2078]
[1728063589538,0.4137,2417.3,2417.2,6.4378]
[1728063592751,0.4137,2417.3,2417.2,6.85152]
[1728063592944,0.4137,2417.3,2417.2,6.4378]
[1728063594544,0.4137,2417.3,2417.2,3.23]
[1728063596340,0.41373,2417.1,2417.0,3.7269]
[1728063596647,0.41373,2417.1,2417.0,4.14065]
[1728063597648,0.41373,2417.1,2417.0,3.7269]
[1728063599445,0.41373,2417.1,2417.0,4.14065]
[1728063600149,0.41373,2417.1,2417.0,0.4969]
[1728063600350,0.41375,2417.0,2416.9,3.2078]
[1728063601856,0.41375,2417.0,2416.9,3.62157]
[1728063602445,0.41375,2417.0,2416.9,3.2078]
[1728063603052,0.41375,2417.0,2416.9,3.62157]
[1728063603249,0.41375,2417.0,2416.9,6.85157]
[1728063604150,0.41375,2417.0,2416.9,3.2078]
[1728063604347,4.55135,2417.0,2416.9,3.2078]
[1728063604549,1.03448,2416.8,2416.5,1.08260014]
[1728063604757,0.41382,2416.6,2416.5,1.08260014]
[1728063605049,0.41384,2416.5,2416.1,6.4378]
[1728063605256,0.52,2416.5,2416.1,6.4378]
[1728063605456,0.41388,2416.3,2416.2,0.41388]
[1728063605657,1.55461,2416.5,2416.1,6.4378]
[1728063605853,0.41388,2416.3,2416.2,0.41388]
[1728063606254,0.41388,2416.3,2416.2,0.41389]
[1728063606448,1.55461,2416.5,2416.2,0.41389]
[1728063606654,0.41385,2416.4,2416.3,3.23]
[1728063610362,0.41389,2416.3,2416.2,0.41389]
[1728063610552,1.03467,2416.4,2416.1,6.4378]
[1728063610752,0.41389,2416.2,2416.1,6.8517]
[1728063611050,0.41389,2416.2,2416.1,6.4378]
[1728063611255,0.41389,2416.2,2416.1,6.85171]
[1728063611452,0.41389,2416.2,2416.1,6.4378]
[1728063612462,0.41389,2416.2,2416.1,6.85171]
[1728063612662,0.41389,2416.2,2416.1,6.4378]
[1728063613755,3.2078,2416.7,2416.1,10.577]
[1728063613960,0.4138,2416.7,2416.6,3.23]
[1728063614165,0.4138,2416.7,2416.6,3.64382]
[1728063614756,0.4138,2416.8,2416.7,0.4138]
[1728063614962,0.4138,2416.8,2416.7,3.6438]
[1728063615162,0.4138,2416.8,2416.7,3.23]
[1728063615654,0.4138,2416.8,2416.7,3.6438]
[1728063615852,1.03441,2417.0,2416.7,3.23]
[1728063616058,1.03428,2417.3,2416.9,3.23]
[1728063616263,0.41373,2417.2,2417.1,3.64373]
[1728063616655,0.41373,2417.2,2417.1,3.23]
[1728063616860,0.41373,2417.2,2417.1,3.64373]
[1728063617355,0.41373,2417.2,2417.1,3.23]
[1728063617560,0.41373,2417.1,2417.0,3.23]
[1728063618464,4.77007809,2417.6,2417.1,0.41372]
[1728063618665,0.41371,2417.3,2417.2,0.928]
[1728063618964,0.41367,2417.5,2417.4,3.23]
[1728063620861,3.23,2417.8,2417.2,3.7443]
[1728063621062,0.4137,2417.3,2417.2,0.5143]
[1728063621269,0.41377,2416.9,2416.8,7.399]
[1728063621560,0.41377,2416.9,2416.8,3.7565]
[1728063621767,0.41377,2416.9,2416.8,0.5265]
[1728063622158,0.41377,2416.9,2416.8,0.94029]
[1728063622359,0.41377,2416.9,2416.8,4.17029]
[1728063622668,0.41377,2416.9,2416.8,3.7565]
[1728063623470,0.41377,2416.9,2416.8,0.5265]
[1728063623970,5.17206,2416.9,2416.4,4.15854]
[1728063624172,1.03452,2416.7,2416.5,0.5298]
[1728063624372,0.41382,2416.6,2416.5,0.5298]
[1728063628357,0.41382,2416.6,2416.5,0.94364]
[1728063628665,0.5021,2416.8,2416.5,0.94364]
[1728063628666,0.41381,2416.7,2416.6,0.41382]
[1728063628870,0.41381,2416.7,2416.6,3.64382]
[1728063629267,0.41381,2416.7,2416.6,3.23]
[1728063630066,0.41382,2416.6,2416.5,0.5298]
[1728063631067,4.1384,2416.6,2416.2,3.2078]
[1728063631272,0.41387,2416.3,2416.2,3.2078]
[1728063633175,0.41387,2416.3,2416.2,6.85169]
[1728063633675,0.41387,2416.3,2416.2,6.4378]
[1728063636076,0.41387,2416.3,2416.2,3.23]
[1728063637377,1.03449,2416.8,2416.2,3.23]
[1728063637579,0.41381,2416.7,2416.6,3.64381]
[1728063637881,0.41381,2416.7,2416.6,3.23]
[1728063638371,0.41381,2416.7,2416.6,3.64382]
[1728063641276,0.41382,2416.6,2416.5,3.764]
[1728063641971,0.41382,2416.6,2416.5,4.17784]
[1728063643071,0.41382,2416.6,2416.5,3.764]
[1728063644181,0.41382,2416.6,2416.5,3.23]
[1728063644377,0.5157,2416.7,2416.4,3.2078]
[1728063644578,0.41389,2416.2,2416.1,0.4877]
[1728063646883,0.41388,2416.3,2416.1,3.6955]
[1728063647079,0.41388,2416.3,2416.2,3.64387]
[1728063647379,4.75804,2416.7,2416.5,0.41383]
[1728063647380,0.41382,2416.6,2416.5,0.41383]
[1728063647582,0.41381,2416.7,2416.6,0.4138]
[1728063647987,1.03443,2416.9,2416.6,3.23]
[1728063648190,0.41379,2416.8,2416.7,0.41379]
[1728063648486,0.41379,2416.8,2416.7,3.62159]
[1728063648686,0.41379,2416.8,2416.7,3.2078]
[1728063648983,1.03439,2417.0,2416.7,3.2078]
[1728063649190,0.41378,2416.9,2416.8,4.17347]
[1728063649579,0.41378,2416.9,2416.8,3.7597]
[1728063650276,0.41378,2416.9,2416.8,3.23]
[1728063650483,0.41379,2416.8,2416.7,6.4378]
[1728063651290,0.41379,2416.8,2416.6,0.5024]
[1728063651291,0.4138,2416.7,2416.6,0.5024]
[1728063652484,0.4138,2416.7,2416.6,1.0235]
[1728063653989,0.4138,2416.7,2416.6,1.43732]
[1728063654197,0.4138,2416.7,2416.6,1.0235]
[1728063654694,0.4138,2416.7,2416.6,1.43732]
[1728063655287,1.03447,2416.9,2416.6,1.0235]
[1728063655493,0.4138,2416.7,2416.6,1.0235]
[1728063655985,0.4138,2416.7,2416.6,1.43732]
[1728063656185,0.4138,2416.7,2416.6,1.0235]
[1728063656386,0.4138,2416.7,2416.6,1.43732]
[1728063656790,0.4138,2416.7,2416.6,1.0235]
[1728063657596,0.4138,2416.7,2416.6,1.43732]
[1728063658293,1.03447,2416.8,2416.7,0.4138]
[1728063658294,0.4138,2416.8,2416.7,0.4138]
[1728063658494,0.4138,2416.8,2416.7,3.6438]
[1728063660196,0.4138,2416.8,2416.6,1.0235]
[1728063660398,0.4138,2416.7,2416.6,1.0235]
[1728063660791,0.4138,2416.7,2416.6,1.43732]
[1728063661296,0.4138,2416.8,2416.7,0.41379]
[1728063661793,0.4138,2416.7,2416.6,1.43731]
[1728063661998,0.4138,2416.7,2416.6,1.0235]
[1728063662507,0.4138,2416.7,2416.6,0.5211]
[1728063662686,0.4138,2416.7,2416.6,0.93492]
[1728063662891,1.03443,2416.9,2416.7,0.41379]
[1728063662892,0.4138,2416.8,2416.7,0.41379]
[1728063663091,0.4138,2416.8,2416.7,4.15879]
[1728063665394,0.4138,2416.8,2416.7,8.29639]
[1728063666596,0.41377,2417.0,2416.9,0.41376]
[1728063666794,0.41372,2417.3,2417.2,0.41371]
[1728063667000,1.03415,2417.6,2417.2,6.4378]
[1728063667207,0.41367,2417.5,2417.4,0.41367]
[1728063667698,1.03405,2417.8,2417.3,2.08291401]
[1728063667906,1.03405,2417.8,2417.5,6.85146]
[1728063667907,0.41365,2417.6,2417.5,6.85146]
[1728063668200,0.41364,2417.7,2417.6,0.41364]
[1728063668401,0.41363,2417.8,2417.7,0.41363]
[1728063668615,1.56976,2418.3,2417.7,9.23]
[1728063668798,1.03379,2418.4,2417.9,3.2078]
[1728063668994,0.41353,2418.4,2418.2,3.64354]
[1728063669196,1.03373,2418.6,2418.2,3.64354]
[1728063669403,0.41348,2418.6,2418.5,3.23]
[1728063670297,0.41336,2419.3,2419.0,0.4134]
[1728063670496,3.73592809,2420.3,2419.2,3.23]
[1728063670497,0.4855,2420.3,2419.2,3.23]
[1728063670697,0.4855,2420.3,2419.7,3.23]
[1728063670698,0.41327,2419.8,2419.7,3.23]
[1728063670910,0.41332,2419.5,2419.3,3.23]
[1728063671094,1.03325,2419.7,2419.1,3.62119]
[1728063671095,0.41337,2419.3,2419.1,6.4378]
[1728063671294,0.41338,2419.2,2419.1,3.23]
[1728063671497,0.4855,2419.6,2419.1,3.23]
[1728063671806,0.4984,2419.9,2419.5,3.23]
[1728063672010,0.41328,2419.8,2419.5,3.23]
[1728063672212,0.41328,2419.8,2419.7,3.23]
[1728063672397,1.03309,2420.1,2419.4,3.2078]
[1728063672398,0.41331,2419.6,2419.5,3.23]
[1728063672605,3.23,2420.0,2419.3,3.23]
[1728063672806,0.41333,2419.5,2419.3,3.23]
[1728063673001,0.41334,2419.4,2419.3,3.23]
[1728063673803,0.41334,2419.4,2419.1,3.62119]
[1728063674310,0.41335,2419.4,2419.1,3.2078]
[1728063675006,0.41334,2419.5,2419.1,3.62119]
[1728063675214,1.03323,2419.7,2419.1,3.62119]
[1728063675400,1.03323,2419.7,2419.1,3.2078]
[1728063675603,0.41333,2419.5,2419.1,3.62118]
[1728063676006,0.41332,2419.6,2419.2,0.41337]
[1728063676707,0.41333,2419.5,2419.2,0.41337]
[1728063677011,0.5171,2419.8,2419.1,3.62118]
[1728063677201,0.41334,2419.5,2419.1,3.62118]
[1728063677408,0.41334,2419.4,2419.1,3.62119]
[1728063677709,0.41334,2419.5,2419.1,3.62119]
[1728063677900,0.41334,2419.4,2419.1,3.62119]
[1728063678110,0.41334,2419.4,2419.1,3.2078]
[1728063678308,0.5171,2419.8,2419.2,0.41337]
[1728063678503,0.41331,2419.6,2419.2,0.41337]
[1728063679305,0.41331,2419.6,2419.3,0.41335]
[1728063679506,0.41331,2419.6,2419.2,0.41336]
[1728063679905,0.41331,2419.6,2419.1,3.2078]
[1728063680112,0.41329,2419.7,2419.2,0.41337]
[1728063680318,0.5171,2419.8,2419.2,0.41337]
[1728063680512,1.55032,2419.8,2419.2,0.41336]
[1728063680816,0.41332,2419.6,2419.3,0.41335]
[1728063681002,1.55032,2419.8,2419.1,3.2078]
[1728063681003,0.5171,2419.8,2419.1,3.2078]
[1728063681208,0.5171,2419.8,2419.4,3.2078]
[1728063681409,3.2078,2420.4,2419.6,3.97]
[1728063681711,0.9966,2420.3,2420.1,0.41322]
[1728063681911,1.03285,2420.6,2420.0,3.2078]
[1728063682118,0.41322,2420.1,2420.0,3.2078]
[1728063683312,0.41322,2420.1,2419.5,2.0476]
[1728063683313,0.41328,2419.8,2419.7,3.2078]
[1728063683514,0.41328,2419.8,2419.3,3.97]